fUST/lending_fUST_20250802
["ID","MTS","AMOUNT","RATE_DAILY","PERIOD"]
[376774445,1754116125247,706.98136755,0.00026,120]
[376774446,1754116125423,1079.30273337,0.0002718,120]
[376774447,1754116125471,1012.3936389,0.0002718,120]
[376774448,1754116125567,287.17071616,0.00024,120]
[376774449,1754116125820,422.87811071,0.00025,120]
[376774450,1754116126159,407.31093343,0.0002718,120]
[376774451,1754116126256,300.0,0.0002718,30]
[376774452,1754116126397,186.68091453,0.0002718,120]
[376774453,1754116126843,265.94911,0.00023,120]
[376774454,1754116126872,512.61118533,0.0002718,120]
[376774457,1754116167234,326.15568465,0.00019,2]
[376774503,1754116232940,-347.2,0.00019998,2]
[376774505,1754116232952,-298.25819252,0.00019998,2]
[376774508,1754116232963,-554.54180748,0.00019998,2]
[376774509,1754116232973,-300.0,0.00019999,2]
[376774511,1754116232982,-300.0,0.00019999,2]
[376774513,1754116232991,-300.0,0.00019999,2]
[376774515,1754116233000,-195.0,0.00019999,2]
[376774517,1754116233008,-300.0,0.00019999,2]
[376774519,1754116233017,-300.0,0.00019999,2]
[376774521,1754116233027,-45602.87390361,0.0002,2]
[376774523,1754116233039,-10368.36988786,0.0002,2]
[376774525,1754116233048,-6482.99793806,0.0002,2]
[376774527,1754116233058,-307.0,0.000201,2]
[376774528,1754116233067,-5000.0,0.00020196,2]
[376774529,1754116233076,-200.0,0.00020399,15]
[376774530,1754116233085,-200.0,0.00020399,15]
[376774531,1754116233094,-200.0,0.00020399,15]
[376774532,1754116233104,-200.0,0.00020399,15]
[376774533,1754116233113,-200.0,0.00020399,15]
[376774534,1754116233122,-572.0680755,0.000204,2]
[376774535,1754116233132,-792.2,0.00020645,10]
[376774536,1754116233142,-1175.6386344,0.00020655,2]
[376774537,1754116233151,-50000.0,0.00020655,2]
[376774538,1754116233160,-503.97900421,0.00020673,2]
[376774539,1754116233170,-250.54524466,0.000209,2]
[376774540,1754116233179,-270.72042796,0.00021,2]
[376774541,1754116233188,-458.835213,0.00021048,2]
[376774542,1754116233198,-500.0,0.00021699,2]
[376774543,1754116233207,-180.21589831,0.00021729,2]
[376774544,1754116233220,-420.0,0.00021777,2]
[376774545,1754116233230,-215.0,0.0002188,2]
[376774546,1754116233239,-525.45,0.0002197,3]
[376774547,1754116233248,-262.73,0.0002197,3]
[376774548,1754116233258,-788.19,0.0002197,3]
[376774549,1754116233268,-251380.55665862,0.0002198,2]
[376774550,1754116233280,-1247.31331951,0.0002198,2]
[376774571,1754116238650,-500.00000001,0.00021979,2]
[376774573,1754116238659,-500.0,0.00021979,2]
[376774575,1754116238669,-500.0,0.00021979,2]
[376774577,1754116238678,-500.0,0.00021979,2]
[376774578,1754116238687,-500.0,0.00021979,2]
[376774579,1754116238696,-500.0,0.00021979,2]
[376774580,1754116238705,-500.0,0.00021979,2]
[376774581,1754116238714,-500.0,0.00021979,2]
[376774582,1754116238723,-523.45823881,0.00021979,2]
[376774583,1754116238732,-500.0,0.00021979,2]
[376774584,1754116238740,-500.0,0.00021979,2]
[376774585,1754116238749,-500.0,0.00021979,2]
[376774586,1754116238758,-500.0,0.00021979,2]
[376774587,1754116238767,-500.0,0.00021979,2]
[376774588,1754116238776,-500.0,0.00021979,2]
[376774589,1754116238785,-500.0,0.00021979,2]
[376774590,1754116238794,-500.0,0.00021979,2]
[376774591,1754116238803,-500.0,0.00021979,2]
[376774592,1754116238812,-500.0,0.00021979,2]
[376774593,1754116238821,-500.0,0.00021979,2]
[376774594,1754116238830,-377.84176117,0.00021979,2]
[376774595,1754116238842,-122.15823883,0.00021979,2]
[376774596,1754116238851,-187.06844958,0.00021979,2]
[376774597,1754116238860,-500.0,0.00021979,2]
[376774598,1754116238869,-500.0,0.00021979,2]
[376774599,1754116238878,-473.59385588,0.00021979,2]
[376774600,1754116238890,-500.0,0.00021979,2]
[376774601,1754116238899,-500.0,0.00021979,2]
[376774602,1754116238909,-500.0,0.00021979,2]
[376774603,1754116238918,-500.0,0.00021979,2]
[376774604,1754116238927,-500.0,0.00021979,2]
[376774605,1754116238936,-500.0,0.00021979,2]
[376774606,1754116238945,-500.0,0.00021979,2]
[376774607,1754116238954,-500.0,0.00021979,2]
[376774608,1754116238963,-500.0,0.00021979,2]
[376774609,1754116238972,-500.0,0.00021979,2]
[376774610,1754116238981,-500.0,0.00021979,2]
[376774611,1754116238990,-500.0,0.00021979,2]
[376774612,1754116239000,-449.86578781,0.00021979,2]
[376774613,1754116239009,-500.0,0.00021979,2]
[376774614,1754116239018,-500.0,0.00021979,2]
[376774615,1754116239027,-400.0,0.00021979,2]
[376774616,1754116239037,-500.0,0.00021979,2]
[376774617,1754116239046,-500.0,0.00021979,2]
[376774618,1754116239055,-500.0,0.00021979,2]
[376774619,1754116239064,-500.0,0.00021979,2]
[376774620,1754116239073,-500.0,0.00021979,2]
[376774621,1754116239082,-500.0,0.00021979,2]
[376774622,1754116239091,-500.0,0.00021979,2]
[376774623,1754116239100,-500.0,0.00021979,2]
[376774624,1754116239110,-500.0,0.00021979,2]
[376774625,1754116239119,-282.97777653,0.00021979,2]
[376774626,1754116239128,-500.0,0.00021979,2]
[376774627,1754116239138,-500.0,0.00021979,2]
[376774628,1754116239148,-500.0,0.00021979,2]
[376774629,1754116239157,-500.0,0.00021979,2]
[376774630,1754116239166,-500.0,0.00021979,2]
[376774631,1754116239175,-15777.63539954,0.0002198,2]
[376774632,1754116239184,-180.0,0.00022,2]
[376774633,1754116239194,-179.0,0.00022,2]
[376774634,1754116239203,-7595.74,0.00022,7]
[376774635,1754116239212,-1941.82,0.00022,7]
[376774636,1754116239225,-160.0,0.00022,2]
[376774637,1754116239234,-200.0,0.00022396,15]
[376774638,1754116239243,-200.0,0.00022396,15]
[376774639,1754116239252,-200.0,0.00022396,15]
[376774640,1754116239262,-200.0,0.00022396,15]
[376774641,1754116239271,-200.0,0.00022396,15]
[376774642,1754116239281,-200.0,0.00022396,15]
[376774643,1754116239289,-200.0,0.00022396,15]
[376774644,1754116239300,-260.0,0.00022548,2]
[376774645,1754116239309,-500.0,0.00022795,2]
[376774646,1754116239318,-678.7,0.00022915,4]
[376774647,1754116239327,-1568.39593258,0.00023,2]
[376774648,1754116239335,-360.0,0.00023096,2]
[376774649,1754116239345,-678.7,0.00023301,5]
[376774650,1754116239354,-460.86285458,0.00023332,2]
[376774651,1754116239363,-1050.9,0.0002334,3]
[376774652,1754116239372,-525.46,0.0002334,3]
[376774653,1754116239380,-173.06748731,0.00023361,2]
[376774654,1754116239390,-460.0,0.00023644,2]
[376774655,1754116239399,-178.12299723,0.00023673,2]
[376774656,1754116239409,-678.7,0.00023688,5]
[376774657,1754116239418,-587.0,0.00023712,2]
[376774658,1754116239428,-3837.45885041,0.0002378,2]
[376774659,1754116239438,-666.749,0.00023792,5]
[376774660,1754116239447,-179.001,0.00023792,5]
[376774661,1754116239456,-500.0,0.00023891,2]
[376774662,1754116239466,-1023.74008946,0.00024,7]
[376774663,1754116239476,-678.7,0.00024074,5]
[376774664,1754116239486,-560.0,0.00024192,2]
[376774665,1754116239495,-160.0,0.00024363,2]
[376774666,1754116239505,-841.70373825,0.00024363,2]
[376774667,1754116239515,-160.0,0.00024367,2]
[376774668,1754116239524,-160.0,0.00024367,2]
[376774669,1754116239533,-303.73078669,0.00024397,2]
[376774670,1754116239542,-774.57,0.00024414,7]
[376774671,1754116239552,-150.0,0.00024419,2]
[376774672,1754116239561,-678.7,0.0002446,6]
[376774673,1754116239570,-312.16666667,0.00024484,2]
[376774674,1754116239579,-160.0,0.00024484,2]
[376774675,1754116239588,-215.0795835,0.00024484,2]
[376774676,1754116239598,-160.0,0.00024489,2]
[376774677,1754116239607,-231.57249719,0.00024489,2]
[376774678,1754116239617,-160.0,0.00024489,2]
[376774679,1754116239626,-216.27517063,0.00024489,2]
[376774680,1754116239635,-512.02965708,0.000245,3]
[376774681,1754116239647,-7595.74,0.000245,7]
[376774682,1754116239656,-774.57,0.00024514,7]
[376774683,1754116239666,-160.0,0.00024521,2]
[376774684,1754116239675,-439.29102873,0.00024556,2]
[376774685,1754116239684,-500.0,0.00024556,2]
[376774686,1754116239693,-500.0,0.00024556,2]
[376774687,1754116239702,-500.0,0.00024556,2]
[376774688,1754116239812,-500.0,0.00024556,2]
[376774689,1754116239822,-500.0,0.00024556,2]
[376774690,1754116239831,-500.0,0.00024556,2]
[376774691,1754116239840,-500.0,0.00024556,2]
[376774692,1754116239849,-500.0,0.00024556,2]
[376774693,1754116239858,-500.0,0.00024556,2]
[376774694,1754116239867,-500.0,0.00024556,2]
[376774695,1754116239877,-500.0,0.00024556,2]
[376774696,1754116239887,-500.0,0.00024556,2]
[376774697,1754116239900,-500.0,0.00024556,2]
[376774698,1754116239909,-500.0,0.00024556,2]
[376774699,1754116239918,-500.0,0.00024556,2]
[376774700,1754116239929,-500.0,0.00024556,2]
[376774701,1754116239938,-31501.14855835,0.00024557,2]
[376774702,1754116239947,-1769.66446627,0.00024557,2]
[376774703,1754116239958,-230.38308156,0.00024571,2]
[376774704,1754116239967,-200.0,0.00024588,15]
[376774705,1754116239976,-200.0,0.00024588,15]
[376774706,1754116239985,-200.0,0.00024588,15]
[376774707,1754116239995,-200.0,0.00024588,15]
[376774708,1754116240003,-200.0,0.00024588,15]
[376774709,1754116240013,-200.0,0.00024588,15]
[376774710,1754116240022,-200.0,0.00024588,15]
[376774711,1754116240031,-200.0,0.00024588,15]
[376774712,1754116240040,-358.0,0.00024588,15]
[376774713,1754116240049,-1941.82,0.000246,7]
[376774714,1754116240058,-774.57,0.00024614,7]
[376774715,1754116240067,-1769.66446625,0.00024621,2]
[376774716,1754116240077,-674.92,0.00024646,3]
[376774717,1754116240087,-337.46,0.00024646,3]
[376774718,1754116240096,-168.73,0.00024646,3]
[376774719,1754116240105,-506.23,0.00024647,3]
[376774720,1754116240115,-476.34523505,0.0002465,2]
[376774721,1754116240124,-155.0,0.00024656,2]
[376774722,1754116240133,-460.0,0.00024657,10]
[376774723,1754116240146,-462.12317459,0.00024657,10]
[376774724,1754116240156,-460.0,0.00024657,10]
[376774725,1754116240166,-464.75431489,0.00024657,10]
[376774726,1754116240176,-460.0,0.00024657,10]
[376774727,1754116240185,-460.0,0.00024657,10]
[376774728,1754116240195,-460.0,0.00024657,10]
[376774729,1754116240204,-460.0,0.00024657,10]
[376774730,1754116240213,-460.0,0.00024657,10]
[376774731,1754116240229,-460.0,0.00024657,10]
[376774732,1754116240238,-460.0,0.00024657,10]
[376774733,1754116240248,-460.0,0.00024657,10]
[376774734,1754116240257,-460.0,0.00024657,10]
[376774735,1754116240267,-460.0,0.00024657,10]
[376774736,1754116240276,-460.0,0.00024657,10]
[376774737,1754116240287,-356.1787166,0.00024657,10]
[376774738,1754116240296,-460.0,0.00024657,10]
[376774739,1754116240305,-462.57887394,0.00024657,10]
[376774740,1754116240314,-460.0,0.00024657,10]
[376774742,1754116240323,-460.0,0.00024657,10]
[376774743,1754116240332,-460.0,0.00024657,10]
[376774745,1754116240341,-460.0,0.00024657,10]
[376774746,1754116240351,-460.0,0.00024657,10]
[376774747,1754116240360,-460.0,0.00024657,10]
[376774748,1754116240370,-460.0,0.00024657,10]
[376774749,1754116240379,-460.0,0.00024657,10]
[376774751,1754116240391,-460.0,0.00024657,10]
[376774752,1754116240400,-170.51,0.00024657,10]
[376774753,1754116240410,-460.0,0.00024657,10]
[376774754,1754116240419,-461.36345307,0.00024657,7]
[376774755,1754116240430,-460.0,0.00024657,10]
[376774756,1754116240439,-360.61823735,0.00024657,10]
[376774758,1754116240448,-502.82,0.00024657,10]
[376774760,1754116240458,-463.60194041,0.00024657,7]
[376774762,1754116240467,-460.0,0.00024657,10]
[376774764,1754116240476,-460.0,0.00024657,10]
[376774766,1754116240486,-460.0,0.00024657,3]
[376774768,1754116240495,-460.0,0.00024657,3]
[376774770,1754116240504,-460.0,0.00024657,3]
[376774772,1754116240513,-460.0,0.00024657,3]
[376774774,1754116240522,-487.54169264,0.00024657,3]
[376774775,1754116240531,-461.78432749,0.00024657,10]
[376774778,1754116240541,-564.9316697,0.00024657,10]
[376774779,1754116240549,-460.0,0.00024657,10]
[376774780,1754116240559,-461.67346734,0.00024657,10]
[376774781,1754116240568,-460.0,0.00024657,10]
[376774782,1754116240578,-461.8775402,0.00024657,10]
[376774783,1754116240587,-460.0,0.00024657,10]
[376774784,1754116240597,-460.0,0.00024657,10]
[376774785,1754116240606,-460.87130916,0.00024657,10]
[376774786,1754116240616,-464.41813362,0.00024657,10]
[376774787,1754116240625,-460.0,0.00024657,10]
[376774788,1754116240635,-460.0,0.00024657,10]
[376774789,1754116240651,-460.0,0.00024657,10]
[376774790,1754116240660,-460.0,0.00024657,10]
[376774791,1754116240669,-1415.21,0.00024657,10]
[376774792,1754116240678,-1415.21,0.00024657,10]
[376774793,1754116240688,-1415.21,0.00024657,10]
[376774794,1754116240698,-1415.21,0.00024657,10]
[376774795,1754116240707,-1415.21,0.00024657,10]
[376774796,1754116240716,-460.0,0.00024657,10]
[376774798,1754116240725,-460.0,0.00024657,10]
[376774800,1754116240735,-460.0,0.00024657,10]
[376774802,1754116240744,-460.0,0.00024657,10]
[376774804,1754116240753,-460.0,0.00024657,10]
[376774805,1754116240762,-460.0,0.00024657,10]
[376774806,1754116240772,-460.59220102,0.00024657,10]
[376774807,1754116240781,-460.0,0.00024657,10]
[376774808,1754116240790,-460.0,0.00024657,10]
[376774809,1754116240800,-460.0,0.00024657,10]
[376774810,1754116240809,-460.0,0.00024657,10]
[376774811,1754116240818,-463.90207571,0.00024657,10]
[376774812,1754116240828,-460.0,0.00024657,10]
[376774813,1754116240837,-460.0,0.00024657,10]
[376774814,1754116240846,-460.0,0.00024657,10]
[376774815,1754116240855,-461.66195818,0.00024657,10]
[376774816,1754116240864,-460.0,0.00024657,10]
[376774817,1754116240873,-460.0,0.00024657,10]
[376774818,1754116240882,-460.0,0.00024657,10]
[376774819,1754116240896,-462.60519038,0.00024657,10]
[376774820,1754116240906,-460.0,0.00024657,10]
[376774821,1754116240915,-460.0,0.00024657,10]
[376774822,1754116240924,-460.0,0.00024657,10]
[376774823,1754116240934,-460.0,0.00024657,10]
[376774824,1754116240943,-460.0,0.00024657,10]
[376774825,1754116240952,-1052.32,0.00024657,10]
[376774826,1754116240961,-1052.32,0.00024657,10]
[376774827,1754116240971,-1052.32,0.00024657,10]
[376774828,1754116240980,-460.0,0.00024657,10]
[376774829,1754116240989,-460.0,0.00024657,10]
[376774830,1754116240997,-460.0,0.00024657,10]
[376774831,1754116241006,-460.0,0.00024657,10]
[376774832,1754116241015,-460.0,0.00024657,10]
[376774833,1754116241024,-460.0,0.00024657,10]
[376774834,1754116241033,-460.0,0.00024657,10]
[376774835,1754116241042,-460.0,0.00024657,10]
[376774836,1754116241050,-460.0,0.00024657,10]
[376774837,1754116241059,-460.0,0.00024657,10]
[376774838,1754116241068,-460.0,0.00024657,10]
[376774839,1754116241077,-460.0,0.00024657,10]
[376774840,1754116241086,-278.68128887,0.00024657,10]
[376774841,1754116241095,-516.16709291,0.00024657,10]
[376774842,1754116241104,-460.0,0.00024657,10]
[376774843,1754116241114,-460.0,0.00024657,10]
[376774844,1754116241123,-302.65483665,0.00024657,10]
[376774845,1754116241132,-460.0,0.00024657,10]
[376774846,1754116241145,-460.0,0.00024657,10]
[376774847,1754116241154,-603.97268716,0.00024657,10]
[376774848,1754116241163,-460.0,0.00024657,10]
[376774849,1754116241171,-460.0,0.00024657,10]
[376774850,1754116241180,-460.0,0.00024657,10]
[376774851,1754116241190,-460.0,0.00024657,10]
[376774852,1754116241199,-460.0,0.00024657,10]
[376774853,1754116241208,-460.0,0.00024657,10]
[376774854,1754116241217,-426.00721584,0.00024657,10]
[376774855,1754116241231,-460.0,0.00024657,10]
[376774856,1754116241240,-460.0,0.00024657,10]
[376774857,1754116241249,-460.0,0.00024657,10]
[376774858,1754116241261,-460.0,0.00024657,10]
[376774859,1754116241277,-460.0,0.00024657,10]
[376774860,1754116241286,-460.0,0.00024657,10]
[376774861,1754116241295,-460.0,0.00024657,10]
[376774862,1754116241304,-460.0,0.00024657,10]
[376774863,1754116241315,-460.0,0.00024657,10]
[376774864,1754116241330,-460.0,0.00024657,10]
[376774865,1754116241339,-460.0,0.00024657,10]
[376774866,1754116241349,-460.0,0.00024657,10]
[376774867,1754116241358,-460.0,0.00024657,10]
[376774868,1754116241367,-460.0,0.00024657,10]
[376774869,1754116241377,-460.0,0.00024657,10]
[376774870,1754116241386,-460.0,0.00024657,10]
[376774871,1754116241399,-460.0,0.00024657,10]
[376774872,1754116241408,-460.0,0.00024657,10]
[376774873,1754116241418,-460.0,0.00024657,10]
[376774874,1754116241427,-460.0,0.00024657,10]
[376774875,1754116241436,-460.0,0.00024657,10]
[376774876,1754116241445,-460.0,0.00024657,10]
[376774877,1754116241454,-460.0,0.00024657,10]
[376774878,1754116241464,-460.0,0.00024657,10]
[376774879,1754116241473,-460.0,0.00024657,10]
[376774880,1754116241482,-460.0,0.00024657,10]
[376774881,1754116241491,-460.0,0.00024657,10]
[376774882,1754116241500,-460.0,0.00024657,10]
[376774883,1754116241509,-460.0,0.00024657,10]
[376774884,1754116241519,-460.0,0.00024657,10]
[376774885,1754116241528,-460.0,0.00024657,10]
[376774886,1754116241538,-460.0,0.00024657,10]
[376774887,1754116241547,-460.0,0.00024657,10]
[376774888,1754116241556,-460.0,0.00024657,10]
[376774889,1754116241566,-460.0,0.00024657,10]
[376774890,1754116241575,-460.0,0.00024657,10]
[376774891,1754116241585,-460.0,0.00024657,10]
[376774892,1754116241595,-344.07,0.00024657,10]
[376774893,1754116241605,-460.0,0.00024657,10]
[376774894,1754116241615,-460.0,0.00024657,10]
[376774895,1754116241625,-460.0,0.00024657,10]
[376774896,1754116241635,-460.0,0.00024657,10]
[376774897,1754116241651,-460.0,0.00024657,10]
[376774898,1754116241661,-460.0,0.00024657,10]
[376774899,1754116241671,-460.0,0.00024657,10]
[376774900,1754116241682,-460.0,0.00024657,10]
[376774901,1754116241692,-460.0,0.00024657,10]
[376774902,1754116241702,-460.0,0.00024657,10]
[376774903,1754116241712,-460.0,0.00024657,10]
[376774904,1754116241721,-460.0,0.00024657,10]
[376774905,1754116241731,-460.0,0.00024657,10]
[376774906,1754116241740,-460.0,0.00024657,10]
[376774907,1754116241749,-460.0,0.00024657,10]
[376774908,1754116241758,-460.0,0.00024657,10]
[376774909,1754116241767,-460.0,0.00024657,10]
[376774910,1754116241776,-460.0,0.00024657,10]
[376774911,1754116241785,-460.0,0.00024657,10]
[376774912,1754116241795,-460.0,0.00024657,10]
[376774913,1754116241803,-460.0,0.00024657,10]
[376774914,1754116241812,-460.0,0.00024657,10]
[376774915,1754116241822,-460.0,0.00024657,10]
[376774917,1754116241832,-460.0,0.00024657,10]
[376774919,1754116241841,-460.0,0.00024657,10]
[376774921,1754116241850,-460.0,0.00024657,10]
[376774922,1754116241859,-460.0,0.00024657,10]
[376774924,1754116241868,-460.0,0.00024657,10]
[376774926,1754116241877,-460.0,0.00024657,10]
[376774928,1754116241886,-460.0,0.00024657,10]
[376774930,1754116241899,-460.0,0.00024657,10]
[376774932,1754116241908,-460.0,0.00024657,10]
[376774934,1754116241917,-460.0,0.00024657,10]
[376774936,1754116241926,-460.0,0.00024657,10]
[376774938,1754116241935,-460.0,0.00024657,10]
[376774940,1754116241944,-460.0,0.00024657,10]
[376774942,1754116241954,-460.0,0.00024657,10]
[376774944,1754116241963,-460.0,0.00024657,10]
[376774946,1754116241974,-460.0,0.00024657,10]
[376774948,1754116241983,-469.41636274,0.00024657,10]
[376774950,1754116241992,-460.0,0.00024657,10]
[376774952,1754116242002,-460.0,0.00024657,10]
[376774954,1754116242011,-460.0,0.00024657,10]
[376774956,1754116242020,-460.0,0.00024657,10]
[376774958,1754116242029,-460.0,0.00024657,10]
[376774960,1754116242037,-460.0,0.00024657,10]
[376774962,1754116242046,-460.0,0.00024657,10]
[376774964,1754116242055,-460.0,0.00024657,10]
[376774965,1754116242066,-460.0,0.00024657,10]
[376774967,1754116242075,-460.0,0.00024657,10]
[376774969,1754116242085,-460.0,0.00024657,10]
[376774971,1754116242094,-460.0,0.00024657,10]
[376774973,1754116242103,-500.0,0.00024657,10]
[376774983,1754116242112,-460.0,0.00024657,10]
[376774985,1754116242215,-282.24,0.00024657,10]
[376774986,1754116242226,-460.0,0.00024657,10]
[376774987,1754116242236,-360.21536538,0.00024657,10]
[376774988,1754116242245,-460.0,0.00024657,10]
[376774989,1754116242254,-460.0,0.00024657,10]
[376774990,1754116242263,-460.0,0.00024657,10]
[376774991,1754116242272,-268.02119063,0.00024657,10]
[376774992,1754116242280,-460.0,0.00024657,10]
[376774993,1754116242289,-460.0,0.00024657,10]
[376774994,1754116242298,-460.0,0.00024657,10]
[376774995,1754116242307,-460.0,0.00024657,10]
[376774996,1754116242316,-460.0,0.00024657,10]
[376774997,1754116242325,-460.0,0.00024657,10]
[376774998,1754116242334,-460.0,0.00024657,10]
[376774999,1754116242343,-489.99,0.00024657,10]
[376775000,1754116242352,-460.0,0.00024657,10]
[376775001,1754116242361,-203.66452426,0.00024657,10]
[376775002,1754116242370,-460.0,0.00024657,10]
[376775003,1754116242379,-460.0,0.00024657,10]
[376775004,1754116242388,-250.10857162,0.00024657,10]
[376775005,1754116242402,-461.71419773,0.00024657,10]
[376775006,1754116242411,-460.0,0.00024657,10]
[376775007,1754116242420,-461.16572666,0.00024657,10]
[376775008,1754116242429,-460.0,0.00024657,10]
[376775009,1754116242438,-460.0,0.00024657,10]
[376775010,1754116242447,-460.0,0.00024657,10]
[376775011,1754116242456,-460.0,0.00024657,10]
[376775012,1754116242465,-460.0,0.00024657,10]
[376775013,1754116242475,-460.0,0.00024657,10]
[376775014,1754116242484,-460.0,0.00024657,10]
[376775015,1754116242494,-460.0,0.00024657,10]
[376775016,1754116242504,-460.0,0.00024657,10]
[376775017,1754116242514,-460.0,0.00024657,10]
[376775018,1754116242523,-460.0,0.00024657,10]
[376775019,1754116242532,-460.0,0.00024657,10]
[376775020,1754116242542,-460.0,0.00024657,10]
[376775021,1754116242552,-460.0,0.00024657,10]
[376775022,1754116242561,-460.0,0.00024657,10]
[376775023,1754116242570,-460.0,0.00024657,10]
[376775024,1754116242579,-460.0,0.00024657,10]
[376775025,1754116242588,-460.0,0.00024657,10]
[376775026,1754116242597,-460.0,0.00024657,10]
[376775027,1754116242606,-460.0,0.00024657,10]
[376775028,1754116242615,-460.0,0.00024657,10]
[376775029,1754116242624,-460.0,0.00024657,10]
[376775030,1754116242633,-460.0,0.00024657,10]
[376775031,1754116242648,-460.0,0.00024657,10]
[376775032,1754116242657,-460.0,0.00024657,10]
[376775033,1754116242666,-460.0,0.00024657,10]
[376775034,1754116242675,-357.3,0.00024657,10]
[376775035,1754116242685,-354.97455592,0.00024657,10]
[376775036,1754116242694,-467.93350604,0.00024657,10]
[376775037,1754116242703,-460.0,0.00024657,10]
[376775038,1754116242713,-460.0,0.00024657,10]
[376775039,1754116242722,-526.77,0.00024657,10]
[376775040,1754116242731,-460.0,0.00024657,10]
[376775041,1754116242740,-526.77,0.00024657,10]
[376775042,1754116242749,-460.0,0.00024657,10]
[376775043,1754116242758,-526.77,0.00024657,10]
[376775044,1754116242767,-460.0,0.00024657,10]
[376775045,1754116242777,-526.77,0.00024657,10]
[376775046,1754116242786,-460.0,0.00024657,10]
[376775047,1754116242796,-526.77,0.00024657,10]
[376775048,1754116242805,-460.0,0.00024657,10]
[376775049,1754116242814,-460.0,0.00024657,10]
[376775050,1754116242823,-526.77,0.00024657,10]
[376775051,1754116242832,-510.28,0.00024657,10]
[376775052,1754116242841,-526.77,0.00024657,10]
[376775053,1754116242850,-526.77,0.00024657,10]
[376775054,1754116242860,-526.77,0.00024657,10]
[376775055,1754116242869,-526.77,0.00024657,10]
[376775056,1754116242878,-526.77,0.00024657,10]
[376775057,1754116242887,-463.10907313,0.00024657,10]
[376775058,1754116242901,-526.77,0.00024657,10]
[376775059,1754116242910,-526.77,0.00024657,10]
[376775060,1754116242931,-526.77,0.00024657,10]
[376775061,1754116242942,-526.77,0.00024657,10]
[376775062,1754116242951,-1899.84,0.00024657,10]
[376775063,1754116242961,-1899.84,0.00024657,10]
[376775064,1754116242971,-1899.84,0.00024657,10]
[376775065,1754116242981,-1899.84,0.00024657,10]
[376775066,1754116242990,-1899.84,0.00024657,10]
[376775067,1754116243000,-317.25516707,0.00024657,10]
[376775068,1754116243009,-460.0,0.00024657,10]
[376775069,1754116243019,-351.44636609,0.00024657,10]
[376775070,1754116243028,-460.0,0.00024657,10]
[376775071,1754116243038,-460.0,0.00024657,10]
[376775072,1754116243047,-583.10008186,0.00024657,10]
[376775073,1754116243057,-460.0,0.00024657,10]
[376775074,1754116243066,-460.0,0.00024657,10]
[376775075,1754116243075,-460.0,0.00024657,10]
[376775076,1754116243085,-460.0,0.00024657,10]
[376775077,1754116243094,-460.0,0.00024657,10]
[376775078,1754116243104,-460.0,0.00024657,10]
[376775079,1754116243113,-460.0,0.00024657,10]
[376775080,1754116243123,-389.2,0.00024657,10]
[376775081,1754116243132,-316.89694518,0.00024657,10]
[376775082,1754116243146,-460.0,0.00024657,10]